bitfinex/quotes_SOLUSD_20250726
["timestamp","ask_amount","ask_price","bid_price","bid_amount"]
[1753543248322,1.23,186.67,186.64,4.94245299]
[1753543248535,1.23,186.67,186.65,4.94245299]
[1753543249505,1.23,186.67,186.65,10.30007172]
[1753543249703,1.23,186.67,186.66,4.94245299]
[1753543250906,1.23,186.67,186.65,4.94245299]
[1753543252431,1.23,186.67,186.64,5.35788342]
[1753543252636,1.23,186.67,186.66,4.94245299]
[1753543253933,1.23,186.67,186.65,4.94245299]
[1753543254158,1.23,186.67,186.64,4.94245299]
[1753543254432,1.93,186.67,186.64,4.94245299]
[1753543254913,1.93,186.67,186.64,10.30032935]
[1753543256539,1.93,186.67,186.64,4.94245299]
[1753543257740,1.93,186.67,186.64,10.30035241]
[1753543259744,1.23,186.67,186.64,11.00035241]
[1753543260239,1.23,186.67,186.64,5.64245299]
[1753543260440,4.94245299,186.65,186.58,0.06]
[1753543260747,4.94245299,186.59,186.58,0.06]
[1753543260955,43.04245299,186.59,186.58,0.06]
[1753543261254,43.74245299,186.59,186.58,0.06]
[1753543261411,0.7,186.59,186.58,0.06]
[1753543261617,11.001797,186.59,186.58,0.06]
[1753543268521,6.05934401,186.59,186.58,0.06]
[1753543268738,11.001797,186.59,186.58,0.06]
[1753543268920,37.001797,186.59,186.58,0.06]
[1753543269342,53.78648097,186.59,186.58,0.06]
[1753543269756,27.78648097,186.59,186.58,0.06]
[1753543269938,29.30218097,186.59,186.58,0.06]
[1753543273061,50.617497,186.59,186.58,0.06]
[1753543273237,76.617497,186.59,186.58,0.06]
[1753543275037,26.0,186.59,186.58,0.06]
[1753543275246,64.1,186.59,186.58,0.06]
[1753543278959,69.45934401,186.59,186.58,0.06]
[1753543280844,64.1,186.59,186.58,0.06]
[1753543282835,1.5511,186.63,186.58,0.06]
[1753543283038,38.1,186.62,186.58,5.70245299]
[1753543283258,38.1,186.62,186.59,0.7]
[1753543284562,38.1,186.62,186.59,5.64245299]
[1753543285450,38.1,186.62,186.59,0.7]
[1753543286258,38.1,186.62,186.58,5.00245299]
[1753543286446,38.78,186.62,186.58,5.70245299]
[1753543287164,38.78,186.62,186.58,0.76]
[1753543287956,38.78,186.62,186.58,5.70245299]
[1753543288148,44.13850674,186.62,186.58,0.76]
[1753543288454,44.13850674,186.62,186.58,5.70245299]
[1753543288858,38.78,186.62,186.58,5.70245299]
[1753543289265,0.6,186.61,186.58,5.70245299]
[1753543289461,0.6,186.61,186.6,4.94245299]
[1753543290067,0.6,186.61,186.6,10.58490598]
[1753543290369,0.03,186.67,186.61,5.35876962]
[1753543290370,0.03,186.66,186.61,5.35876962]
[1753543290762,0.03,186.66,186.65,4.94245299]
[1753543290954,0.03,186.66,186.62,0.7]
[1753543291272,0.03,186.66,186.65,4.94245299]
[1753543291652,0.03,186.66,186.65,5.64245299]
[1753543292369,0.03,186.66,186.65,11.0000742]
[1753543296774,0.03,186.66,186.65,34.55642029]
[1753543301371,0.03,186.66,186.65,17.07173632]
[1753543301545,0.03,186.66,186.65,10.3000742]
[1753543302394,0.71,186.66,186.65,4.94245299]
[1753543304084,0.03,186.66,186.64,10.30032119]
[1753543304458,0.03,186.66,186.65,4.94245299]
[1753543306080,0.03,186.66,186.65,10.3000742]
[1753543308276,0.03,186.66,186.65,11.0000742]
[1753543308463,0.03,186.66,186.65,65.82475817]
[1753543310567,0.03,186.66,186.65,66.36052029]
[1753543311071,0.03,186.67,186.66,16.78468397]
[1753543311380,0.03,186.67,186.66,22.42713696]
[1753543312078,1e-08,186.67,186.66,27.78447115]
[1753543312579,0.03,186.69,186.68,26.0]
[1753543312781,0.03,186.69,186.68,86.30281298]
[1753543312976,0.03,186.69,186.68,87.00281298]
[1753543314277,0.03,186.69,186.68,92.35957321]
[1753543315665,0.75,186.69,186.68,31.35676023]
[1753543315864,0.75,186.69,186.68,36.29921322]
[1753543318478,0.03,186.69,186.68,36.29921322]
[1753543319576,0.03,186.69,186.68,54.32957321]
[1753543321181,0.75,186.69,186.68,5.47812901]
[1753543321371,0.75,186.69,186.68,4.94245299]
[1753543321765,0.75,186.69,186.68,10.29921322]
[1753543323383,0.03,186.69,186.68,10.29921322]
[1753543325282,0.75,186.69,186.68,10.29921322]
[1753543326058,0.03,186.69,186.68,10.29921322]
[1753543327887,0.03,186.69,186.68,4.94245299]
[1753543328762,0.75,186.69,186.68,4.94245299]
[1753543329182,0.75,186.69,186.68,10.29921322]
[1753543329389,0.75,186.69,186.68,4.94245299]
[1753543330703,0.75,186.69,186.64,4.94245299]
[1753543330893,0.75,186.69,186.64,42.96245299]
[1753543331193,4.94245299,186.68,186.62,5.00245299]
[1753543331498,4.94245299,186.65,186.62,0.06]
[1753543331795,0.72,186.67,186.62,0.06]
[1753543331796,5.66245299,186.67,186.62,0.06]
[1753543331969,4.94245299,186.67,186.62,0.06]
[1753543332173,0.72,186.66,186.62,0.06]
[1753543332370,0.72,186.68,186.65,4.94245299]
[1753543332580,0.03,186.69,186.67,4.94245299]
[1753543332771,0.03,186.69,186.64,38.0]
[1753543332772,0.03,186.69,186.68,4.94245299]
[1753543334669,0.75,186.69,186.68,4.94245299]
[1753543335180,0.75,186.69,186.68,5.00245299]
[1753543336381,0.03,186.69,186.68,5.00245299]
[1753543336590,0.03,186.69,186.68,10.35921322]
[1753543338381,0.75,186.69,186.68,5.00245299]
[1753543340009,0.03,186.69,186.68,5.00245299]
[1753543341171,0.03,186.69,186.68,10.35921322]
[1753543344514,0.03,186.69,186.68,11.57488924]
[1753543346907,0.03,186.69,186.68,28.35957321]
[1753543347902,0.03,186.69,186.68,10.89488924]
[1753543348246,0.74,186.69,186.68,48.35921322]
[1753543348518,0.03,186.69,186.68,47.85921322]
[1753543359235,0.03,186.69,186.68,48.53921322]
[1753543359621,0.03,186.69,186.68,47.85921322]
[1753543361527,0.03,186.69,186.68,48.53921322]
[1753543361926,0.03,186.69,186.68,47.85921322]
[1753543363044,0.03,186.69,186.68,152.72389719]
[1753543363304,0.03,186.69,186.68,157.66635018]
[1753543365322,0.03,186.71,186.7,42.78468397]
[1753543365644,0.03,186.71,186.7,91.16520858]
[1753543365824,0.03,186.71,186.7,91.84520858]
[1753543366343,0.03,186.71,186.7,184.60139497]
[1753543366649,0.03,186.71,186.7,184.06577634]
[1753543367851,0.03,186.73,186.7,185.69477634]
[1753543368039,0.03,186.73,186.72,21.72713696]
[1753543368358,0.03,186.73,186.72,59.68713696]
[1753543368541,0.03,186.73,186.72,65.72274964]
[1753543369756,0.03,186.73,186.72,65.04274964]
[1753543371465,0.74,186.73,186.72,65.04274964]
[1753543371656,0.03,186.73,186.72,65.04274964]
[1753543371854,1e-08,186.73,186.72,10.29806567]
[1753543372040,0.71000001,186.73,186.72,65.02274964]
[1753543375369,0.71000001,186.73,186.71,4.94245299]
[1753543375544,0.71000001,186.73,186.71,37.94]
[1753543375871,0.71000001,186.73,186.7,43.29590405]
[1753543376945,0.71000001,186.73,186.7,48.23835704]
[1753543377449,0.71000001,186.73,186.68,97.75893589]
[1753543377650,5.652453,186.73,186.68,43.3564829]
[1753543377852,0.68,186.72,186.68,43.3564829]
[1753543378065,0.68,186.72,186.68,0.06]
[1753543378253,4.94245299,186.71,186.68,0.06]
[1753543378770,0.68,186.7,186.68,0.06]
[1753543380563,1e-08,186.73,186.68,0.06]
[1753543380767,0.68,186.72,186.69,4.94245299]
[1753543381057,0.68,186.71,186.69,10.29876112]
[1753543381260,0.68,186.7,186.69,10.29876112]
[1753543382952,0.68,186.7,186.68,5.41676023]
[1753543383270,0.68,186.7,186.69,4.94245299]
[1753543383886,0.71,186.72,186.69,4.94245299]
[1753543384083,0.03,186.72,186.7,5.35618639]
[1753543384379,0.03,186.72,186.71,5.62245299]
[1753543384548,0.03,186.72,186.71,4.94245299]
[1753543384746,0.71,186.72,186.71,4.94245299]
[1753543386273,0.71,186.72,186.71,10.29835251]
[1753543387276,0.03,186.72,186.71,10.29835251]
[1753543387954,0.03,186.72,186.71,10.97835251]
[1753543389081,0.03,186.72,186.71,10.29835251]
[1753543389751,0.71,186.72,186.7,37.92]
[1753543389952,0.71,186.72,186.71,4.94245299]
[1753543390257,0.71,186.72,186.69,87.4]
[1753543390454,5.65245299,186.72,186.68,0.06]
[1753543390662,5.62245299,186.71,186.68,0.06]
[1753543390972,0.68,186.71,186.68,0.06]
[1753543391763,0.68,186.7,186.68,5.00245299]
[1753543392160,0.03,186.72,186.69,4.94245299]
[1753543392356,0.03,186.72,186.71,4.94245299]
[1753543392777,0.71,186.72,186.71,4.94245299]
[1753543392986,0.71,186.72,186.68,0.06]
[1753543393359,5.65245299,186.72,186.68,0.06]
[1753543393582,0.68,186.71,186.68,0.06]
[1753543396886,0.68,186.7,186.68,0.06]
[1753543398366,0.71,186.72,186.69,4.94245299]
[1753543398682,0.68,186.7,186.68,5.00245299]
[1753543399186,0.68,186.69,186.68,0.06]
[1753543407187,0.74,186.72,186.68,0.06]
[1753543407495,0.71,186.71,186.68,0.06]
[1753543408306,0.71,186.7,186.68,0.06]
[1753543408999,0.71,186.7,186.68,5.00245299]
[1753543409169,0.03,186.72,186.68,0.06]
[1753543409372,0.71,186.71,186.68,0.06]
[1753543409698,0.71,186.7,186.68,0.06]
[1753543409876,0.03,186.72,186.68,0.06]
[1753543410078,0.71,186.69,186.68,0.06]
[1753543411087,0.71,186.69,186.67,9.35941267]
[1753543412100,0.03,186.72,186.67,4.41695968]
[1753543412296,0.71,186.68,186.67,9.35941267]
[1753543412481,0.71,186.7,186.67,9.35941267]
[1753543412678,0.03,186.72,186.67,9.35941267]
[1753543412882,0.71,186.69,186.67,9.35941267]
[1753543413396,0.03,186.72,186.67,9.35941267]
[1753543413599,0.71,186.71,186.67,9.35941267]
[1753543413800,0.71,186.71,186.68,4.94245299]
[1753543415988,0.71,186.71,186.68,10.98894285]
[1753543416186,0.71,186.71,186.68,5.35648986]
[1753543416399,0.71,186.71,186.68,10.29894285]
[1753543416981,0.71,186.71,186.68,10.98894285]
[1753543417911,0.03,186.72,186.68,10.98894285]
[1753543418404,0.74,186.72,186.68,10.98894285]
[1753543418703,0.03,186.72,186.71,4.94245299]
[1753543419086,0.03,186.72,186.71,5.63245299]
[1753543420005,0.03,186.72,186.71,10.98835251]
[1753543421690,0.03,186.72,186.71,10.29835251]
[1753543422512,5.68245299,186.72,186.65,5.69245299]
[1753543422703,0.71,186.71,186.65,5.69245299]
[1753543423516,0.71,186.71,186.65,11.05004783]
[1753543423733,0.71,186.71,186.66,4.94245299]
[1753543423893,0.03,186.72,186.68,4.94245299]
[1753543424218,0.71,186.71,186.67,4.94245299]
[1753543424406,0.71,186.71,186.67,5.00245299]
[1753543424917,0.71,186.71,186.67,5.69245299]
[1753543425119,0.03,186.72,186.7,4.94245299]
[1753543425427,0.03,186.72,186.71,4.94245299]
[1753543425716,0.03,186.72,186.71,10.29835251]
[1753543426011,0.03,186.72,186.71,10.98835251]
[1753543427514,0.03,186.72,186.71,27.77303648]
[1753543427814,0.03,186.74,186.72,27.08274964]
[1753543428021,0.03,186.74,186.73,22.26266954]
[1753543428228,0.03,186.74,186.73,22.95266954]
[1753543428689,0.03,186.75,186.74,16.78468397]
[1753543428891,0.03,186.75,186.74,60.27713696]
[1753543430112,0.03,186.75,186.74,65.63217605]
[1753543438011,0.03,186.76,186.74,65.63217605]
[1753543438209,0.03,186.76,186.75,22.91261219]
[1753543439330,0.03,186.76,186.75,115.66736453]
[1753543439511,0.03,186.76,186.75,115.1318893]
[1753543440099,0.72,186.8,186.75,141.41621244]
[1753543440301,0.03,186.8,186.76,43.43245299]
[1753543440603,0.03,186.8,186.76,130.83245299]
[1753543441127,0.72,186.8,186.76,136.18691861]
[1753543441298,0.72,186.8,186.76,135.53691861]
[1753543443029,0.72,186.8,186.76,136.18691861]
[1753543445536,0.72,186.8,186.76,136.24691861]
[1753543445740,0.72,186.77,186.76,97.75691861]
[1753543445947,0.72,186.77,186.76,130.63446562]
[1753543446136,0.72,186.77,186.76,135.57691861]
[1753543447623,0.72,186.77,186.76,130.63446562]
[1753543447841,0.72,186.77,186.76,0.06]
[1753543448052,0.72,186.77,186.76,5.41446562]
[1753543449838,0.72,186.77,186.76,0.06]
[1753543453143,5.66245299,186.77,186.76,0.06]
[1753543454130,11.01663192,186.77,186.76,0.06]
[1753543454657,0.72,186.77,186.76,0.06]
[1753543455324,5.66245299,186.77,186.76,0.06]
[1753543455520,11.01663192,186.77,186.76,0.06]
[1753543457255,5.66245299,186.77,186.76,0.06]
[1753543457458,0.72,186.77,186.76,0.06]
[1753543458572,5.66245299,186.77,186.76,0.06]
[1753543459272,0.72,186.77,186.76,0.06]
[1753543461866,5.66245299,186.77,186.76,0.06]
[1753543463773,0.72,186.77,186.76,0.06]
[1753543476689,0.03,186.77,186.76,0.06]
[1753543478280,0.74,186.77,186.76,0.06]
[1753543480281,0.03,186.77,186.76,0.06]
[1753543480795,37.83,186.77,186.76,0.06]
[1753543483670,38.54,186.77,186.76,0.06]
[1753543484776,37.83,186.77,186.76,0.06]
[1753543484978,38.54,186.77,186.76,0.06]
[1753543490203,48.83663192,186.77,186.76,0.06]
[1753543490405,95.21486911,186.77,186.72,0.06]
[1753543490581,4.94245299,186.73,186.72,0.06]
[1753543490774,40.93793046,186.73,186.72,0.06]
[1753543491096,38.49,186.73,186.72,0.06]
[1753543493787,0.71,186.73,186.72,0.06]
[1753543494001,38.49,186.73,186.72,0.06]
[1753543495305,37.78,186.73,186.72,0.06]
[1753543495702,37.78,186.73,186.72,5.70231705]
[1753543496005,37.78,186.75,186.72,5.70231705]
[1753543496204,37.78,186.75,186.73,0.71]
[1753543497504,37.78,186.75,186.73,5.64231705]
[1753543497912,37.78,186.76,186.74,5.64231705]
[1753543498504,37.78,186.76,186.73,5.3552167]
[1753543498700,37.78,186.76,186.74,4.93231705]
[1753543499210,37.78,186.76,186.73,10.99753375]
[1753543500712,37.78,186.76,186.75,4.93231705]
[1753543501015,0.03,186.77,186.75,5.64231705]
[1753543501695,0.03,186.77,186.76,5.64231705]
[1753543502194,0.03,186.77,186.76,24.47964758]
[1753543502508,0.03,186.8,186.77,6.4666]
[1753543502716,0.03,186.8,186.79,4.93231705]
[1753543503209,0.03,186.8,186.79,5.64231705]
[1753543504615,0.03,186.8,186.79,10.9959227]
[1753543505293,1e-08,186.8,186.79,33.53260742]
[1753543505529,1e-08,186.81,186.79,33.24828428]
[1753543505824,0.03,186.85,186.81,16.78468397]
[1753543505986,0.03,186.85,186.84,47.71700102]
[1753543506387,0.03,186.85,186.84,86.18700102]
[1753543506830,0.03,186.85,186.84,91.539174]
[1753543507920,0.1,186.91,186.85,16.78468397]
[1753543508126,0.81,186.91,186.9,4.93231705]
[1753543508426,0.1,186.91,186.9,4.93231705]
[1753543509407,0.1,186.91,186.9,10.28277183]
[1753543510504,0.1,186.91,186.9,10.99277183]
[1753543512331,0.1,186.91,186.9,32.70977285]
[1753543512622,0.1,186.96,186.95,26.0]
[1753543512850,0.81,187.04,186.96,16.78468397]
[1753543513134,0.81,187.04,187.03,4.93231705]
[1753543513135,0.1,187.04,187.03,4.93231705]
[1753543514404,0.81,187.04,187.03,4.93231705]
[1753543514922,0.81,187.04,187.01,4.93231705]
[1753543515223,0.1,187.04,187.01,4.93231705]
[1753543515427,0.71,187.03,187.02,4.93231705]
[1753543515727,0.1,187.04,187.02,4.93231705]
[1753543515917,0.81,187.04,187.02,4.93231705]
[1753543517930,0.1,187.04,187.03,4.93231705]
[1753543518606,0.81,187.04,187.01,30.93231705]
[1753543518820,0.1,187.04,187.01,30.93231705]
[1753543519129,0.1,187.04,187.02,4.93231705]
[1753543520434,0.1,187.04,187.03,4.93231705]
[1753543521214,0.1,187.04,187.03,10.27905286]
[1753543521826,0.1,187.04,187.03,10.98905286]
[1753543524530,0.1,187.04,187.03,10.27905286]
[1753543525422,0.81,187.04,187.03,10.27905286]
[1753543526012,0.1,187.04,187.03,10.27905286]
[1753543526911,0.1,187.04,187.03,10.98905286]
[1753543527938,0.1,187.04,187.03,10.27905286]
[1753543529834,0.1,187.04,187.03,10.98905286]
[1753543530042,0.1,187.04,187.03,115.17373683]
[1753543531948,0.81,187.04,187.03,97.67905286]
[1753543532319,0.1,187.04,187.03,97.67905286]
[1753543534235,0.81,187.04,187.0,4.93231705]
[1753543534426,0.81,187.04,187.0,42.61231705]
[1753543534630,5.74231705,187.04,186.99,5.34787956]
[1753543534825,0.71,187.03,186.99,10.28019661]
[1753543535138,0.71,187.02,186.99,10.28019661]
[1753543535444,0.71,187.02,186.99,5.34787956]
[1753543535746,0.1,187.04,186.99,10.28019661]
[1753543535747,0.71,187.01,186.99,10.28019661]
[1753543536839,0.81,187.04,186.99,10.28019661]
[1753543537051,0.71,187.03,186.99,10.28019661]
[1753543537420,0.71,187.03,187.01,4.93231705]
[1753543537644,0.1,187.04,187.01,4.93231705]
[1753543538143,0.81,187.04,187.01,4.93231705]
[1753543538542,0.81,187.04,187.01,10.27935807]
[1753543538947,0.1,187.04,187.01,10.27935807]
[1753543539148,0.1,187.04,187.02,4.93231705]
[1753543539836,0.1,187.04,187.03,4.93231705]
[1753543541041,0.1,187.04,187.03,10.27905286]
[1753543542747,1e-08,187.04,187.03,27.06373683]
[1753543543045,0.03,187.08,187.03,27.06373683]
[1753543543046,0.03,187.08,187.07,16.78468397]
[1753543543345,0.03,187.08,187.07,21.71700102]
[1753543543640,0.03,187.08,187.07,22.42700102]
[1753543544250,0.03,187.08,187.07,16.78468397]
[1753543544447,0.74,187.08,187.05,4.93231705]
[1753543544829,0.03,187.08,187.07,10.2779096]
[1753543545247,0.74,187.08,187.05,4.93231705]
[1753543545449,0.74,187.08,187.04,47.978767]
[1753543545654,0.71,187.07,187.05,4.93231705]
[1753543545831,0.03,187.08,187.06,4.93231705]
[1753543546945,0.03,187.08,187.06,10.27804461]
[1753543551770,0.03,187.08,187.07,4.93231705]
[1753543551933,0.03,187.08,187.07,5.64231705]
[1753543552334,0.03,187.08,187.07,4.93231705]
[1753543553454,0.03,187.08,187.07,10.2779096]
[1753543554459,0.03,187.08,187.07,48.6579096]
[1753543556242,0.03,187.08,187.07,65.44259357]
[1753543556642,0.03,187.12,187.11,26.0]
[1753543556849,0.03,187.12,187.11,68.59231705]
[1753543557155,0.74,187.12,187.11,68.59231705]
[1753543557559,0.03,187.12,187.11,73.93676683]
[1753543558270,0.03,187.12,187.11,74.65676683]
[1753543558498,0.03,187.12,187.11,73.93676683]
[1753543558759,0.03,187.12,187.11,74.65676683]
[1753543562377,0.03,187.16,187.12,16.78468397]
[1753543562587,0.03,187.16,187.15,4.93231705]
[1753543562875,0.03,187.16,187.15,37.66]
[1753543563082,0.03,187.16,187.15,42.59231705]
[1753543563578,0.03,187.16,187.15,43.31231705]
[1753543563781,0.03,187.16,187.15,60.09700102]
[1753543564356,0.03,187.16,187.15,65.44030852]
[1753543566759,1e-08,187.16,187.15,65.44030852]
[1753543568184,1e-08,187.16,187.15,67.28753166]
[1753543568499,0.1,187.23,187.22,26.0]
[1753543568666,0.1,187.23,187.22,73.95362673]
[1753543569383,1.3901,187.3,187.22,73.95362673]
[1753543569689,6.729162,187.3,187.25,4.93231705]
[1753543569910,6.729162,187.3,187.25,42.61231705]
[1753543570289,1.3901,187.3,187.25,42.61231705]
[1753543571191,6.3326,187.36,187.28,4.93231705]
[1753543571410,0.71,187.35,187.25,42.59231705]
[1753543571588,4.93231705,187.3,187.25,37.66]
[1753543571914,5.64231705,187.29,187.25,37.66]
[1753543572093,0.71,187.28,187.25,37.66]
[1753543573803,0.71,187.27,187.25,43.00043097]
[1753543574415,0.71,187.3,187.26,5.65231705]
[1753543574597,0.71,187.3,187.27,4.93231705]
[1753543574796,0.71,187.3,187.27,42.57231705]
[1753543574994,0.71,187.3,187.28,4.93231705]
[1753543575319,1.5915,187.31,187.22,26.0]
[1753543575320,0.71,187.29,187.23,42.98074613]
[1753543575496,4.93231705,187.27,187.23,42.98074613]
[1753543575692,0.71,187.26,187.23,42.98074613]
[1753543576041,5.64231705,187.25,187.2,6.06162637]
[1753543576210,4.93231705,187.25,187.21,37.74]
[1753543576411,0.71,187.24,187.21,37.74]
[1753543577115,5.33931336,187.29,187.19,32.06214111]
[1753543577116,5.64231705,187.23,187.19,32.06214111]
[1753543577418,0.71,187.22,187.2,37.76]
[1753543577790,0.71,187.22,187.2,43.10177492]
[1753543578022,4.93231705,187.23,187.2,43.10177492]
[1753543578426,4.93231705,187.25,187.2,43.10177492]
[1753543578715,5.64231705,187.24,187.2,43.82177492]
[1753543579099,4.93231705,187.25,187.21,0.72]
[1753543579507,5.64231705,187.25,187.21,0.72]
[1753543579718,5.64231705,187.25,187.21,6.06154213]
[1753543579917,0.71,187.24,187.21,5.34154213]
[1753543581807,0.71,187.24,187.21,6.06154213]
[1753543582017,4.93231705,187.25,187.21,6.06154213]
[1753543582216,5.64231705,187.25,187.21,6.06154213]
[1753543583126,4.93231705,187.25,187.21,5.34154213]
[1753543583423,0.71,187.24,187.21,5.34154213]
[1753543583729,4.93231705,187.25,187.21,6.06154213]
[1753543583930,5.64231705,187.25,187.21,6.06154213]
[1753543584243,0.71,187.24,187.21,5.34154213]
[1753543584726,5.64231705,187.23,187.2,37.76]
[1753543584939,0.71,187.22,187.16,5.34302201]
[1753543585097,4.93231705,187.2,187.17,37.74]
[1753543585301,4.93231705,187.21,187.17,38.44]
[1753543585623,5.64231705,187.21,187.17,38.44]
[1753543586004,5.64231705,187.2,187.16,5.34302201]
[1753543586240,5.64231705,187.19,187.15,43.08328645]
[1753543586532,0.71,187.18,187.15,37.74]
[1753543587043,0.71,187.18,187.14,43.82352207]
[1753543587733,0.71,187.18,187.14,43.12352207]
[1753543587919,0.71,187.18,187.15,6.04324959]
[1753543588439,4.93231705,187.18,187.15,6.04324959]
[1753543589129,0.71,187.22,187.16,0.7]
[1753543589311,4.93231705,187.21,187.16,0.7]
[1753543589712,4.93231705,187.23,187.17,4.93231705]
[1753543589922,4.93231705,187.23,187.18,6.04245111]
[1753543590226,7.28741705,187.24,187.19,0.7]
[1753543590805,0.71,187.23,187.19,0.7]
[1753543591812,0.71,187.23,187.2,5.34188034]
[1753543592619,6.57741705,187.24,187.2,5.34188034]
[1753543592919,7.28741705,187.24,187.2,5.34188034]
[1753543593237,2.3551,187.24,187.2,5.34188034]
[1753543594433,0.71,187.24,187.2,5.34188034]
[1753543594733,0.71,187.24,187.2,6.04188034]
[1753543594915,4.93231705,187.25,187.19,5.34216571]
[1753543595114,0.71,187.23,187.19,5.34216571]
[1753543595414,0.71,187.23,187.19,6.04216571]
[1753543595821,0.71,187.22,187.19,6.04216571]
[1753543596422,5.64231705,187.24,187.19,6.04216571]
[1753543596617,5.34017269,187.26,187.19,6.04216571]
[1753543596824,0.71,187.23,187.19,6.04216571]
[1753543598536,5.64231705,187.25,187.2,6.04167415]
[1753543598833,5.64231705,187.25,187.21,0.7]
[1753543599011,4.93231705,187.25,187.21,0.7]
[1753543599211,0.71,187.24,187.21,0.7]
[1753543599735,0.71,187.24,187.2,5.34167415]
[1753543599930,0.71,187.24,187.2,0.7]
[1753543600133,5.64231705,187.23,187.19,5.34210949]
[1753543600440,0.71,187.23,187.19,5.34210949]
[1753543600613,0.71,187.22,187.19,5.34210949]
[1753543601144,0.71,187.22,187.19,0.7]
[1753543601633,4.93231705,187.2,187.17,5.34265688]
[1753543601836,1.5341,187.23,187.15,38.4]
[1753543602137,4.93231705,187.17,187.13,38.38]
[1753543602340,4.93231705,187.17,187.14,0.7]
[1753543602637,0.71,187.18,187.14,0.7]
[1753543602837,4.93231705,187.17,187.16,0.06]
[1753543604344,5.64231705,187.17,187.16,0.06]
[1753543604846,10.98505359,187.17,187.16,0.06]
[1753543607312,5.64231705,187.17,187.16,0.06]
[1753543607711,10.98505359,187.17,187.16,0.06]
[1753543608336,48.66505359,187.17,187.16,0.06]
[1753543608719,65.44973756,187.17,187.16,0.06]
[1753543608933,67.06343756,187.17,187.16,0.06]
[1753543609127,93.06343756,187.17,187.16,0.06]
[1753543609660,42.78468397,187.14,187.11,0.06]
[1753543609949,4.93231705,187.12,187.11,0.06]
[1753543610149,42.59231705,187.12,187.11,0.06]
[1753543610348,43.30231705,187.12,187.11,0.06]
[1753543610820,5.64231705,187.12,187.11,0.06]
[1753543611150,43.32231705,187.12,187.11,0.06]
[1753543612138,48.66648122,187.12,187.11,0.06]
[1753543614149,65.45116519,187.12,187.11,0.06]
[1753543614849,65.43116519,187.12,187.11,0.06]
[1753543615043,48.64648122,187.12,187.11,0.06]
[1753543615240,43.30231705,187.12,187.11,0.06]
[1753543615552,42.59231705,187.12,187.11,0.06]
[1753543617159,37.66,187.12,187.11,0.06]
[1753543617366,37.66,187.12,187.11,0.75]
[1753543617545,4.93231705,187.15,187.11,0.75]
[1753543617856,37.66,187.14,187.11,0.06]
[1753543618064,42.59231705,187.14,187.11,0.75]
[1753543618237,38.36,187.14,187.11,0.06]
[1753543618860,0.7,187.14,187.11,0.06]
[1753543619158,37.66,187.14,187.11,0.75]
[1753543621156,38.36,187.14,187.11,0.06]
[1753543621956,37.66,187.14,187.11,0.06]
[1753543622165,0.7,187.13,187.11,0.06]
[1753543622343,4.93231705,187.12,187.11,0.06]
[1753543622755,5.63231705,187.12,187.11,0.06]
[1753543623044,69.29231705,187.14,187.11,0.06]
[1753543623242,43.29231705,187.14,187.11,0.06]
[1753543623463,4.93231705,187.13,187.11,0.06]
[1753543623965,5.63231705,187.13,187.11,0.06]
[1753543625269,4.93231705,187.12,187.11,0.06]
[1753543625445,0.7,187.13,187.11,0.06]
[1753543625645,4.93231705,187.12,187.11,0.06]
[1753543625868,5.63231705,187.12,187.11,0.06]